bitfinex/quotes_ETHUSD_20220305
["timestamp","ask_amount","ask_price","bid_price","bid_amount"]
[1646491035616,1.5495367,2646.5,2645.9,0.01177]
[1646491035915,4.5,2647.0,2645.9,0.01177]
[1646491036113,1.54963094,2646.9,2645.7,1.91090458]
[1646491036316,1.54963094,2646.9,2646.1,0.00286762]
[1646491036513,0.99055278,2646.5,2646.1,0.00286762]
[1646491037315,0.99055278,2646.5,2645.7,0.91090458]
[1646491037517,0.99055278,2646.5,2646.2,0.00286758]
[1646491038420,0.99055278,2646.5,2645.7,0.547]
[1646491038824,0.99055278,2646.5,2646.2,0.00286757]
[1646491039070,4.5,2647.0,2646.2,0.00286757]
[1646491039268,1.54962353,2646.9,2646.2,0.00286757]
[1646491039769,1.54962353,2646.9,2645.9,1.02374108]
[1646491039970,1.54962353,2646.8,2646.4,0.00287838]
[1646491040171,4.5,2647.2,2646.4,0.00287838]
[1646491040172,0.98585283,2646.7,2646.4,0.00287838]
[1646491040973,0.98585283,2646.7,2645.9,1.57074108]
[1646491041174,0.98585283,2646.7,2646.4,0.00287838]
[1646491041571,0.3788,2647.2,2646.4,0.00287838]
[1646491041572,1.0,2647.2,2646.4,0.00287838]
[1646491041771,1.54954175,2647.1,2646.4,0.00287838]
[1646491041972,1.54954175,2647.0,2646.4,0.00287838]
[1646491042173,1.54954175,2647.0,2646.1,0.547]
[1646491042174,1.1563,2647.3,2646.1,0.547]
[1646491042475,1.54944373,2647.2,2646.7,0.00287829]
[1646491042716,1.02987178,2646.9,2646.7,0.00287829]
[1646491043419,1.02987178,2646.9,2646.4,0.547]
[1646491043621,1.02987178,2646.9,2646.7,0.0028767]
[1646491044521,1.02987178,2646.9,2646.4,0.547]
[1646491044522,0.0033533,2647.4,2646.4,0.547]
[1646491044723,1.55277153,2647.4,2646.7,0.0028767]
[1646491045723,0.99406403,2647.1,2646.4,0.547]
[1646491046023,0.99406403,2647.1,2646.9,0.00287661]
[1646491046866,1.54945685,2647.0,2646.1,1.6815]
[1646491047069,1.54945685,2647.0,2646.1,2.6815]
[1646491047269,1.54945685,2647.0,2646.9,0.00287685]
[1646491048070,1.54945685,2647.0,2646.1,1.6815]
[1646491048269,1.54945685,2647.0,2646.8,0.00287687]
[1646491049273,1.54945685,2647.0,2646.1,1.1345]
[1646491049470,1.06830818,2646.7,2646.1,1.1345]
[1646491049669,1.06830818,2646.7,2646.0,0.25]
[1646491049969,1.06830818,2646.7,2645.9,0.55851149]
[1646491050518,1.06830818,2646.7,2645.9,0.547]
[1646491050919,1.06830818,2646.7,2646.2,0.00287706]
[1646491051719,1.06712348,2646.7,2645.9,0.547]
[1646491051922,1.06712348,2646.7,2646.3,0.00287701]
[1646491052220,1.06712348,2646.7,2645.9,0.55851003]
[1646491052221,1.06712348,2646.7,2645.9,0.51138704]
[1646491052923,1.06712348,2646.7,2645.9,0.49987701]
[1646491053975,5.0677,2647.1,2645.9,0.49987701]
[1646491054265,1.54956141,2647.0,2646.2,0.00287924]
[1646491055066,0.97686453,2646.6,2646.2,0.00287924]
[1646491055267,0.97686453,2646.6,2646.1,1.0]
[1646491055667,0.97686453,2646.6,2646.2,0.00287946]
[1646491056571,0.97686453,2646.6,2645.9,0.547]
[1646491056769,0.97686453,2646.6,2646.2,0.00287931]
[1646491057271,1.18745741,2647.1,2646.2,0.54987931]
[1646491057471,2.3739,2647.3,2646.2,0.54987931]
[1646491057725,1.54936983,2647.2,2646.2,0.547]
[1646491058125,1.54936983,2647.2,2646.6,0.90383048]
[1646491058325,3.41933457,2647.3,2646.7,0.547]
[1646491058326,1.04543457,2647.3,2646.7,0.547]
[1646491061230,0.0033533,2647.4,2646.7,0.547]
[1646491061488,1.55264241,2647.4,2646.7,0.547]
[1646491061670,1.55264241,2647.4,2646.7,1.49177]
[1646491061671,0.0033533,2647.4,2646.7,1.49177]
[1646491062073,0.0033533,2647.4,2646.8,0.94473]
[1646491062271,0.0033533,2647.4,2646.9,1.44001974]
[1646491063878,0.06665975,2647.3,2646.9,1.44001974]
[1646491065082,0.06665975,2647.3,2646.9,4.86790808]
[1646491065323,0.06665975,2647.3,2646.9,4.51793974]
[1646491068030,0.06665975,2647.3,2646.9,3.62492]
[1646491068330,0.06665975,2647.3,2646.9,1.7357]
[1646491068730,0.06665975,2647.3,2646.9,0.547]
[1646491069172,0.04282086,2647.3,2646.9,0.547]
[1646491070176,0.04282086,2647.3,2646.8,1.2058]
[1646491070177,1.16589153,2647.0,2646.8,1.2058]
[1646491070574,1.16589153,2647.0,2646.5,0.547]
[1646491070975,1.16589153,2647.0,2646.3,0.1889]
[1646491071177,1.5495038,2646.9,2646.3,0.1889]
[1646491071580,1.5495038,2646.9,2646.2,2.84171284]
[1646491071776,0.88390931,2646.4,2646.2,0.00281284]
[1646491071976,2.7775,2647.2,2646.2,0.00281284]
[1646491072176,1.54949738,2647.1,2645.9,1.4389]
[1646491072379,1.54949738,2647.1,2646.2,0.00281506]
[1646491073125,1.19951843,2646.7,2646.2,0.00281506]
[1646491073325,1.19951843,2646.7,2646.1,1.15947816]
[1646491073524,2.7775,2647.2,2646.1,1.15947816]
[1646491073724,1.54943561,2647.1,2646.2,0.00287657]
[1646491074125,0.04253325,2647.0,2646.2,0.00287657]
[1646491074526,0.04253325,2647.0,2646.1,1.15947816]
[1646491074825,1.03444343,2647.0,2646.2,0.00287653]
[1646491075627,1.03444343,2647.0,2646.2,0.94782653]
[1646491075827,1.03444343,2647.0,2646.2,1.68085]
[1646491076027,1.03444343,2647.0,2646.2,1.6837241]
[1646491077075,1.03444343,2647.0,2646.2,1.68085]
[1646491077275,1.03444343,2647.0,2646.2,1.68372729]
[1646491078176,1.54942516,2646.9,2646.2,1.68085]
[1646491078378,1.54942516,2646.9,2646.2,1.68372729]
[1646491078777,1.54942516,2646.9,2646.2,1.49482729]
[1646491079377,1.54942516,2646.9,2646.2,1.49195]
[1646491079577,1.54942516,2646.9,2646.2,1.4948275]
[1646491080626,1.54942516,2646.9,2646.2,1.49195]
[1646491080822,1.03444343,2647.0,2646.2,1.4948275]
[1646491081825,1.03444343,2647.0,2646.2,1.49195]
[1646491082024,0.04253325,2647.0,2646.2,17.35398169]
[1646491082223,0.04253325,2647.0,2646.3,2.98934838]
[1646491082423,0.04253325,2647.0,2646.4,0.547]
[1646491082827,0.04098101,2647.0,2646.4,0.547]
[1646491083827,0.04098101,2647.0,2646.6,0.87864809]
[1646491084069,0.97685132,2647.3,2646.7,0.547]
[1646491084269,1.54928747,2647.2,2646.7,0.547]
[1646491084870,0.97685132,2647.3,2646.7,0.547]
[1646491085069,0.0033533,2647.4,2646.7,0.547]
[1646491085268,1.55253051,2647.4,2646.7,0.547]
[1646491085470,0.0033533,2647.4,2646.7,0.547]
[1646491086173,1.00154675,2647.3,2646.7,0.547]
[1646491087283,1.54926621,2647.2,2646.7,0.547]
[1646491088343,1.00154675,2647.3,2646.7,0.547]
[1646491089342,0.0033533,2647.4,2646.7,0.547]
[1646491089541,0.0033533,2647.4,2646.7,12.067]
[1646491089542,1.5525241,2647.4,2646.7,12.067]
[1646491089741,1.5525241,2647.4,2646.7,13.067]
[1646491089742,0.02722059,2647.4,2646.7,13.067]
[1646491090342,0.02722059,2647.4,2647.0,0.94549206]
[1646491090543,0.02722059,2647.4,2647.1,0.547]
[1646491093880,0.02722059,2647.4,2646.8,0.547]
[1646491094080,0.02722059,2647.4,2646.7,1.2021]
[1646491094081,1.54929258,2647.3,2646.7,1.2021]
[1646491094278,1.54929258,2647.3,2646.5,3.8883]
[1646491094481,1.54929258,2647.3,2646.5,2.8883]
[1646491094680,1.54929258,2647.3,2646.5,2.3413]
[1646491094681,0.97648259,2646.7,2646.5,2.3413]
[1646491094879,0.97648259,2646.7,2646.2,4.5392]
[1646491095080,0.97648259,2646.7,2646.0,0.7359]
[1646491095323,5.04962273,2646.6,2646.2,0.00287771]
[1646491095523,1.54962273,2646.5,2646.2,0.00287771]
[1646491095724,0.97648259,2646.7,2646.2,0.00287771]
[1646491095925,1.5496792,2646.6,2646.2,0.00287771]
[1646491096129,1.5496792,2646.6,2645.8,0.1889]
[1646491096324,1.18689975,2646.1,2645.8,0.1889]
[1646491096525,3.5,2647.0,2645.9,0.01151061]
[1646491096727,1.54972123,2646.9,2645.9,0.01151061]
[1646491097028,3.5,2646.8,2645.9,0.01151061]
[1646491097230,1.54972123,2646.7,2645.9,0.01151061]
[1646491097427,1.54972123,2646.7,2645.8,0.1889]
[1646491097632,1.07327405,2646.3,2646.2,0.00287735]
[1646491098636,1.07327405,2646.3,2645.8,0.1889]
[1646491098833,1.07327405,2646.3,2646.1,0.00287947]
[1646491099077,3.8788,2646.8,2646.1,0.00287947]
[1646491099078,3.5,2646.8,2646.1,0.00287947]
[1646491099280,1.54967829,2646.7,2646.1,0.00287947]
[1646491099577,4.5,2647.0,2646.1,0.00287947]
[1646491099578,1.54967829,2646.6,2646.1,0.00287947]
[1646491099778,4.8788,2647.0,2645.8,0.1889]
[1646491099978,1.5496413,2646.9,2646.2,0.00287953]
[1646491100177,0.87530723,2646.6,2646.2,0.00287953]
[1646491100578,0.87530723,2646.6,2645.9,1.19082232]
[1646491100980,0.87530723,2646.6,2645.9,1.18571861]
[1646491101182,0.87530723,2646.6,2645.8,0.1889]
[1646491101382,1.54973764,2646.5,2645.7,0.55645617]
[1646491102183,1.20623054,2646.1,2645.7,0.55645617]
[1646491102384,1.20623054,2646.1,2645.8,0.00288424]
[1646491102826,1.2083,2646.8,2645.8,0.00288424]
[1646491103027,1.54983027,2646.7,2645.8,0.00288424]
[1646491103428,1.54983027,2646.7,2645.4,4.8485]
[1646491103429,1.92863027,2646.7,2645.4,1.3485]
[1646491103628,1.54983027,2646.6,2645.8,0.00288435]
[1646491103832,4.91129073,2646.5,2645.8,0.00288435]
[1646491104027,4.54983027,2646.4,2645.8,0.00288435]
[1646491104227,3.36146046,2646.5,2645.8,0.00288435]
[1646491104228,3.0,2646.2,2645.8,0.00288435]
[1646491104428,0.002963,2645.7,2645.2,0.01153992]
[1646491104628,0.002963,2645.7,2644.7,0.189]
[1646491104828,3.502963,2645.7,2645.2,0.01153919]
[1646491105030,0.002963,2645.7,2645.2,0.01153919]
[1646491105430,0.95319514,2645.5,2645.2,0.01153919]
[1646491105831,0.002963,2645.7,2644.9,0.189]
[1646491106031,0.002963,2645.7,2644.8,1.17151139]
[1646491106231,0.002963,2645.7,2644.8,1.71851139]
[1646491106875,1.06876182,2645.7,2644.8,1.71851139]
[1646491107575,1.06876182,2645.7,2644.8,1.17151139]
[1646491108176,1.06876182,2645.7,2644.9,0.736]
[1646491108776,1.06876182,2645.7,2645.1,0.00308068]
[1646491109478,0.002963,2645.7,2644.9,0.736]
[1646491109677,0.002963,2645.7,2645.3,0.00308062]
[1646491110723,0.002963,2645.7,2644.9,0.736]
[1646491110724,1.10171062,2645.7,2644.9,0.736]
[1646491110924,1.10171062,2645.7,2645.4,0.00308058]
[1646491111924,1.10171062,2645.7,2644.9,0.736]
[1646491112127,1.10171062,2645.7,2645.4,0.00308055]
[1646491113130,1.10171062,2645.7,2644.8,0.1889]
[1646491113331,1.10171062,2645.7,2645.4,0.0029789]
[1646491113531,1.09525684,2645.7,2645.4,0.0029789]
[1646491114174,1.09525684,2645.7,2645.0,0.01191738]
[1646491114370,1.09525684,2645.7,2644.8,0.1889]
[1646491114671,1.01235396,2645.2,2645.0,0.01191738]
[1646491115477,1.1693,2645.8,2644.8,0.1889]
[1646491115678,1.1693,2645.8,2645.0,0.00297907]
[1646491116681,2.29905014,2645.8,2645.1,0.99503876]
[1646491116879,3.5,2646.6,2645.3,0.00286711]
[1646491117079,1.54996772,2646.4,2645.3,0.54986711]
[1646491117478,5.04996772,2646.4,2645.3,0.54986711]
[1646491117718,3.5,2646.4,2645.3,0.54986711]
[1646491117923,3.5,2646.4,2645.3,0.547]
[1646491118125,3.5,2646.4,2645.7,0.002867]
[1646491118323,0.98117921,2646.1,2645.7,0.002867]
[1646491119125,0.98117921,2646.1,2645.3,0.547]
[1646491119329,0.98117921,2646.1,2645.7,0.00286704]
[1646491120328,0.98117921,2646.1,2645.3,0.547]
[1646491120529,0.98117921,2646.1,2645.7,0.00288012]
[1646491121572,0.98117921,2646.1,2645.3,0.547]
[1646491121772,0.98117921,2646.1,2645.7,0.00288012]
[1646491122777,0.98117921,2646.1,2645.1,0.547]
[1646491122977,0.98117921,2646.1,2645.7,0.00288012]
[1646491123582,3.5,2646.0,2645.7,0.00288012]
[1646491123978,3.5,2646.0,2645.0,7.47]
[1646491124178,3.5,2646.0,2645.7,0.00287821]
[1646491124780,0.98117921,2646.1,2645.7,0.00287821]
[1646491125219,0.98117921,2646.1,2644.9,3.5041]
[1646491125423,0.98117921,2646.1,2645.7,0.00287817]
[1646491126323,0.98117921,2646.1,2645.2,1.06268608]
[1646491126526,0.98117921,2646.1,2645.7,0.00093564]
[1646491127627,0.98117921,2646.1,2645.7,0.00093592]
[1646491128227,0.98117921,2646.1,2645.8,0.75]
[1646491128429,3.09127921,2646.4,2645.7,0.00093592]
[1646491128628,3.09127921,2646.4,2645.1,0.54796]
[1646491128629,1.54997312,2646.3,2645.1,0.54796]
[1646491129083,1.17019172,2646.0,2645.7,0.00093592]
[1646491129686,1.06950291,2646.0,2645.7,0.00093592]
[1646491129884,1.06950291,2646.0,2645.1,0.54796]
[1646491130082,1.06950291,2646.0,2645.7,0.0028817]
[1646491131085,1.06950291,2646.0,2645.1,0.54796]
[1646491131284,1.06950291,2646.0,2645.7,0.00294721]
[1646491132287,1.06950291,2646.0,2645.1,0.54796]
[1646491132484,1.06950291,2646.0,2645.7,0.00294721]
[1646491133326,0.02759204,2646.1,2645.7,0.00294721]
[1646491133626,0.02759204,2646.1,2645.4,1.10265457]
[1646491133827,0.02759204,2646.1,2645.7,0.00294721]
[1646491134026,3.3346,2646.5,2645.7,0.00294721]
[1646491134227,1.54993118,2646.4,2645.7,0.00294721]
[1646491134626,1.54993118,2646.4,2645.4,1.10265457]
[1646491134627,1.18337454,2646.1,2645.4,1.10265457]
[1646491134829,1.18337454,2646.1,2645.2,0.00096]
[1646491135027,1.18337454,2646.1,2645.7,0.00287211]
[1646491135828,1.18337454,2646.1,2645.2,0.00096]
[1646491136029,1.18337454,2646.1,2645.7,0.002872]
[1646491137181,1.18337454,2646.1,2645.2,0.00096]
[1646491137383,3.5,2646.4,2645.2,0.00096]
[1646491137384,1.1423,2646.3,2645.7,0.002872]
[1646491137582,1.14534562,2646.0,2645.7,0.002872]
[1646491137781,1.54997661,2645.9,2645.7,0.002872]
[1646491138384,1.54997661,2645.9,2645.3,0.00096]
[1646491138583,1.54997661,2645.9,2645.7,0.00288293]
[1646491139183,1.14534562,2646.0,2645.7,0.00288293]
[1646491139583,1.14534562,2646.0,2645.3,0.91186458]
[1646491139782,1.14534562,2646.0,2645.7,0.00288293]
[1646491139986,1.55001418,2645.9,2645.7,0.00288293]
[1646491140635,2.77231418,2645.9,2645.7,0.00288293]
[1646491140838,1.09539561,2645.3,2645.1,0.00096]
[1646491141034,1.09539561,2645.3,2645.1,0.01153431]
[1646491141837,5.9231,2645.9,2644.9,0.91090458]
[1646491142137,1.55019228,2645.8,2645.1,0.00288153]
[1646491142336,1.55019228,2645.8,2645.1,0.00384153]
[1646491142736,1.55019228,2645.8,2645.1,0.91474611]
[1646491143139,1.55019228,2645.8,2645.1,0.91186458]
[1646491143340,2.70931408,2645.8,2645.3,0.00288145]
[1646491143540,1.55019228,2645.7,2645.3,0.00288145]
[1646491144380,1.55019228,2645.7,2645.2,0.00096]
[1646491144580,1.55019228,2645.7,2645.4,0.00288143]
[1646491145581,1.55019228,2645.7,2645.2,1.45886458]
[1646491145782,1.55019228,2645.7,2645.4,0.00288166]
[1646491146782,1.55019228,2645.7,2645.2,1.45886458]
[1646491146984,1.55019228,2645.7,2645.4,0.00288166]
[1646491147829,1.55019228,2645.7,2645.2,1.45886458]
[1646491148029,1.55019228,2645.7,2645.2,1.45790458]
[1646491148326,1.55019228,2645.7,2645.4,0.00288166]
[1646491148627,1.57747266,2645.7,2645.4,0.00288166]
[1646491148827,0.02728038,2645.7,2645.4,0.00288166]
[1646491149227,0.02728038,2645.7,2645.3,0.91090458]
[1646491149430,0.02728038,2645.7,2645.4,0.00288162]
[1646491149830,0.02728038,2645.7,2645.5,1.45790458]
[1646491150030,0.02615303,2645.7,2645.6,0.91090458]
[1646491150230,0.02615303,2645.7,2645.6,1.45790458]
[1646491152082,0.02615303,2645.7,2645.6,4.95790458]
[1646491152283,0.02615303,2645.7,2645.6,4.047]
[1646491152485,0.02615303,2645.7,2645.6,5.97135221]
[1646491152885,0.02615303,2645.7,2645.6,5.81567234]
[1646491153088,0.02615303,2645.7,2645.6,1.39132013]
[1646491153285,0.02615303,2645.7,2645.5,0.9272338]
[1646491153489,0.02615303,2645.7,2645.5,0.00288159]
[1646491153686,1.55004605,2645.6,2645.5,0.00288159]
[1646491153887,1.55004605,2645.6,2645.2,0.00096]
[1646491154087,1.55004605,2645.6,2645.0,0.92531221]
[1646491154287,0.96975725,2645.3,2645.0,0.00096]
[1646491154488,0.96975725,2645.3,2645.1,0.01152814]
[1646491155220,0.96975725,2645.3,2645.0,0.92435221]
[1646491155422,0.96975725,2645.3,2645.1,0.00288174]
[1646491155624,0.03463145,2645.7,2645.1,0.00288174]
[1646491155922,1.55014123,2645.6,2645.1,0.00288174]
[1646491156325,1.55014123,2645.6,2645.0,0.82819395]
[1646491156523,1.55014123,2645.6,2645.2,0.00093811]
[1646491156724,1.1892257,2645.5,2645.2,0.00093811]
[1646491157527,1.1892257,2645.5,2645.0,0.00096]
[1646491157727,1.1892257,2645.5,2644.9,1.92090166]
[1646491157927,1.1892257,2645.5,2645.0,3.5]
[1646491158130,0.03463145,2645.7,2645.0,3.5]
[1646491158430,0.03463145,2645.7,2645.1,0.547]
[1646491158728,0.03463145,2645.7,2645.2,3.5]
[1646491158982,0.378,2646.6,2645.2,4.047]
[1646491158983,0.03375045,2646.2,2645.2,4.047]
[1646491159173,1.54992016,2646.1,2645.7,0.88101467]
[1646491162480,1.54992016,2646.1,2645.3,0.00096]
[1646491163330,0.91094325,2645.8,2645.3,0.00096]
[1646491163528,0.91094325,2645.8,2645.2,5.047]
[1646491163529,1.54992016,2645.7,2645.2,5.047]
[1646491163730,1.54992016,2645.7,2645.2,1.547]
[1646491164129,1.54992016,2645.7,2645.2,0.547]
[1646491164530,1.54992016,2645.7,2645.2,4.047]
[1646491164731,1.54992016,2645.7,2645.2,5.047]
[1646491164932,0.03423828,2646.1,2645.2,5.047]
[1646491165132,1.55000976,2646.0,2645.2,5.04796]
[1646491165332,1.55000976,2646.0,2645.2,5.97133198]
[1646491165732,1.55000976,2646.0,2645.3,0.92337198]
[1646491165935,1.55000976,2646.0,2645.3,0.92433198]
[1646491166332,1.55000976,2646.0,2645.6,1.08514111]
[1646491167784,1.55000976,2646.0,2645.6,4.58514111]
[1646491168185,1.55000976,2646.0,2645.6,5.50851309]
[1646491168385,0.03423828,2646.1,2645.6,5.50851309]
[1646491168687,0.03423828,2646.1,2645.6,4.58514111]
[1646491168885,0.00262569,2646.3,2645.6,4.58514111]
[1646491169284,0.00262569,2646.3,2646.0,1.01881653]
[1646491169487,1.5498171,2646.4,2646.0,1.01881653]
[1646491169686,1.5498171,2646.4,2646.0,0.91881653]
[1646491169887,0.00262578,2646.3,2646.0,0.91881653]
[1646491170527,1.55244288,2646.3,2646.0,0.91881653]
[1646491170726,0.72761197,2646.7,2646.0,0.91881653]
[1646491170727,1.5498171,2646.2,2646.0,0.91881653]
[1646491170927,1.5498171,2646.1,2646.0,0.91881653]
[1646491171127,0.00262591,2646.3,2646.0,0.91881653]
[1646491171531,0.00262591,2646.3,2645.7,1.1331]
[1646491171928,1.5498171,2646.5,2645.7,1.1331]
[1646491172330,0.00264965,2646.3,2645.7,1.1331]
[1646491173134,1.5498171,2646.5,2645.7,1.1331]
[1646491173330,0.00266986,2646.3,2645.7,1.1331]
[1646491173735,0.03566165,2646.3,2645.7,1.1331]
[1646491174002,1.5498171,2646.2,2645.7,1.1331]
[1646491174189,1.5498171,2646.2,2646.0,0.90490877]
[1646491175089,0.03566165,2646.3,2646.0,0.90490877]
[1646491175290,0.03566165,2646.3,2646.1,4.047]
[1646491175490,0.03566165,2646.3,2646.1,0.547]
[1646491175692,0.03299179,2646.3,2646.1,1.547]
[1646491175893,0.03299179,2646.3,2646.1,0.547]
[1646491176092,0.03565758,2646.3,2646.1,0.547]
[1646491176293,0.03565758,2646.3,2646.1,1.47037198]
[1646491176693,0.03299179,2646.3,2646.1,1.47037198]
[1646491177094,0.03565546,2646.3,2646.1,0.9258]
[1646491177496,0.03565546,2646.3,2646.2,3.5]
[1646491177723,0.03565546,2646.3,2646.2,5.047]
[1646491177928,0.03299179,2646.3,2646.2,5.047]
[1646491178527,0.00266365,2646.4,2646.2,5.047]
[1646491178727,0.00266365,2646.4,2646.3,3.5]
[1646491178931,0.00266365,2646.4,2646.3,4.047]
[1646491179131,1.5495059,2647.3,2646.3,5.047]
[1646491179329,1.5495059,2647.3,2646.6,0.90467608]
[1646491180132,1.5495059,2647.3,2646.3,5.047]
[1646491180534,0.00266436,2647.1,2646.3,5.047]
[1646491181580,1.5495059,2647.3,2646.3,5.047]
[1646491181781,1.5495059,2647.3,2646.5,0.86700151]
[1646491181782,0.00266445,2646.8,2646.5,0.86700151]
[1646491182382,0.00266445,2646.8,2646.3,0.547]
[1646491182680,0.00266445,2646.8,2646.1,3.9882]
[1646491182879,2.24239187,2647.3,2646.1,3.9882]
[1646491183080,0.00266438,2646.7,2646.1,3.9882]
[1646491184080,1.5495059,2646.9,2646.1,3.9882]
[1646491184284,0.00266446,2646.5,2646.1,3.9882]
[1646491184481,0.00266446,2646.5,2646.1,1.0]
[1646491184681,0.00266446,2646.5,2646.0,2.27320331]
[1646491184881,0.00266446,2646.5,2646.0,1.06150331]
[1646491185322,1.5495059,2646.6,2645.7,6.9179]
[1646491185523,0.00266452,2646.4,2645.7,6.9179]
[1646491186324,1.5495059,2646.6,2645.7,6.9179]
[1646491186521,0.00266447,2646.3,2645.8,1.20944661]
[1646491187523,1.5495059,2646.6,2645.8,1.20944661]
[1646491187728,0.0026644,2646.3,2645.8,1.20944661]
[1646491188728,1.5495059,2646.6,2645.7,2.4179]
[1646491188729,0.022041,2646.4,2645.7,2.4179]
[1646491188974,0.0026644,2646.3,2645.7,2.4179]
[1646491189173,1.55245162,2646.3,2645.7,2.4179]
[1646491189374,0.0026644,2646.3,2645.6,3.4676]
[1646491189575,0.0026644,2646.3,2645.5,5.29796]
[1646491189774,0.0026644,2646.3,2645.8,1.19962115]
[1646491189978,0.022041,2646.4,2645.8,1.19962115]
[1646491190178,0.0026643,2646.3,2645.8,1.19962115]
[1646491191283,0.022041,2646.4,2645.8,1.19962115]
[1646491191478,0.00266441,2646.3,2645.8,1.19962115]
[1646491191679,0.00266441,2646.3,2645.5,4.97133198]
[1646491191880,0.00266441,2646.3,2645.5,0.00096]
[1646491191881,0.0014091,2646.3,2645.5,0.00096]
[1646491192083,1.55124011,2646.3,2645.5,1.00096]
[1646491192280,1.54983101,2646.2,2645.5,0.00096]
[1646491192479,1.54983101,2646.1,2645.5,0.00096]
[1646491192741,1.03652981,2646.0,2645.5,0.00096]
[1646491192934,1.03652981,2646.0,2645.4,2.34022753]
[1646491192935,1.03652981,2646.0,2645.4,1.20842753]
[1646491193735,1.03652981,2646.0,2645.6,0.00093815]
[1646491194736,1.03652981,2646.0,2645.3,0.00096]
[1646491195135,1.03652981,2646.0,2645.6,0.00289166]
[1646491195335,0.00289094,2646.2,2645.6,0.00289166]
[1646491196035,1.54993409,2646.3,2645.3,1.1722533]
[1646491196237,0.00289101,2646.2,2645.6,0.00289173]
[1646491196476,0.00289101,2646.2,2645.7,1.00459273]
[1646491196678,1.5528251,2646.2,2645.7,1.00459273]
[1646491196878,0.00289101,2646.2,2645.7,1.00459273]
[1646491197284,1.54982899,2646.3,2645.7,1.00459273]
[1646491197478,0.0028833,2646.2,2645.7,1.00459273]
[1646491197680,0.0028833,2646.2,2645.7,1.55159273]
[1646491198482,0.022041,2646.4,2645.7,1.55159273]
[1646491198682,0.0028833,2646.2,2645.7,1.55159273]
[1646491199082,0.02483135,2646.2,2645.7,1.55159273]
[1646491199683,0.02194805,2646.2,2645.7,1.55159273]
[1646491199887,0.02483135,2646.2,2645.7,1.55159273]
[1646491200739,0.02194805,2646.2,2645.7,0.547]
[1646491201035,0.02194805,2646.2,2645.5,0.00096]
[1646491201036,1.54989997,2646.1,2645.6,0.00288515]
[1646491201639,1.54989997,2646.1,2645.4,1.08984515]
[1646491202240,1.13726732,2645.8,2645.6,0.00288507]
[1646491203241,1.13726732,2645.8,2645.1,3.09688249]
[1646491203641,1.13726732,2645.8,2645.1,2.09688249]
[1646491204677,1.13726732,2645.8,2645.3,0.0028849]
[1646491205681,1.13726732,2645.8,2645.2,0.00096]
[1646491205882,1.13726732,2645.8,2645.1,1.17351051]
[1646491206082,1.13726732,2645.8,2645.4,0.00288486]
[1646491206487,0.00288424,2646.0,2645.4,0.00288486]
[1646491206884,0.00288424,2646.0,2645.2,0.00096]
[1646491206885,1.5500201,2646.1,2645.2,0.00096]
[1646491207085,0.00288428,2646.0,2645.5,0.00288485]
[1646491207950,1.5500201,2646.1,2645.3,0.00096]
[1646491208151,1.5500201,2646.1,2645.6,1.13396078]
[1646491208352,0.00288466,2646.0,2645.6,1.13396078]
[1646491208950,0.00288466,2646.0,2645.5,0.00288523]
[1646491209152,0.02176217,2645.8,2645.3,0.00096]
[1646491209351,0.02176217,2645.8,2645.2,0.547]
[1646491209553,0.02176217,2645.8,2645.5,0.00288527]
[1646491210356,0.02176217,2645.8,2645.4,1.13155377]
[1646491210553,0.02176217,2645.8,2645.5,0.00264351]
[1646491211678,0.02176217,2645.8,2645.4,1.13155377]
[1646491211882,0.02176217,2645.8,2645.5,0.00264346]
[1646491212886,0.02176217,2645.8,2645.3,0.00096]
[1646491213084,0.02176217,2645.8,2645.5,0.00264346]
[1646491213689,0.03264326,2645.8,2645.5,0.00264346]
[1646491214086,1.04311584,2645.8,2645.3,0.00096]
[1646491214288,1.04311584,2645.8,2645.5,0.00264346]
[1646491214687,1.01047258,2645.8,2645.5,0.00264346]
[1646491214889,0.99311584,2645.8,2645.5,0.00264346]
[1646491215324,0.99311584,2645.8,2645.1,0.00096]
[1646491215528,0.99311584,2645.8,2645.5,0.00267816]
[1646491215723,0.00267763,2646.0,2645.5,0.00267816]
[1646491216324,1.54997951,2646.2,2645.2,0.00096]
[1646491216726,0.0026777,2646.0,2645.5,0.00267823]
[1646491217125,1.13286409,2646.0,2645.5,0.00267823]
[1646491217326,1.54997951,2645.9,2645.5,0.00267823]
[1646491217527,1.54997951,2645.9,2645.2,0.00096]
[1646491217932,0.0026777,2646.0,2645.5,0.00267823]
[1646491218734,1.54995022,2646.3,2645.5,0.547]
[1646491218992,1.54995022,2646.3,2645.8,1.02872891]
[1646491219179,0.00267249,2646.0,2645.8,1.02872891]
[1646491219982,1.54995022,2646.3,2645.8,1.02872891]
[1646491220180,0.00267254,2646.0,2645.8,1.02872891]
[1646491221184,5.04983506,2646.7,2645.8,1.02872891]
[1646491221384,0.00267254,2646.0,2645.8,1.02872891]
[1646491222488,1.54983506,2646.5,2645.8,1.02872891]
[1646491222740,0.00267325,2646.0,2645.8,1.02872891]
[1646491223537,1.54983506,2646.5,2645.8,1.02872891]
[1646491223938,0.00267325,2646.0,2645.8,1.02872891]
[1646491224138,0.00267325,2646.0,2645.9,0.04112063]
[1646491224739,1.54983506,2646.5,2645.9,0.04112063]
[1646491225139,0.00267323,2646.1,2645.9,0.04112063]
[1646491225942,1.54983506,2646.5,2645.9,0.04112063]
[1646491226340,0.00267311,2646.1,2645.9,0.04112063]
[1646491227280,1.54983506,2646.5,2645.9,0.04112063]
[1646491227480,0.00267311,2646.1,2645.9,0.04112063]
[1646491228488,1.54983506,2646.5,2645.9,0.04112063]
[1646491228889,0.00267311,2646.1,2645.9,0.04112063]
[1646491229089,0.00267311,2646.1,2645.9,0.02051502]
[1646491229687,1.54983506,2646.5,2645.9,0.02051502]
[1646491229886,0.00267312,2646.1,2645.9,0.02051502]
[1646491230836,1.54983506,2646.5,2645.9,0.02051502]
[1646491231039,0.00267312,2646.1,2645.9,0.02051502]
[1646491232039,1.54983506,2646.5,2645.9,0.02051502]
[1646491232241,0.00267312,2646.1,2645.9,0.02051502]
[1646491233241,1.54983506,2646.5,2645.9,0.02051502]
[1646491233441,0.00267312,2646.1,2645.9,0.02051502]
[1646491233644,0.00267312,2646.1,2645.8,0.02049898]
[1646491234077,1.55250818,2646.1,2645.8,0.02049898]
[1646491234283,1.54983506,2646.0,2645.8,0.02049898]
[1646491234484,1.01395462,2646.2,2645.8,0.02049898]
[1646491234683,1.55252747,2646.1,2645.8,0.02049898]
[1646491235480,1.55123074,2646.1,2645.8,0.02049898]
[1646491235680,1.2451,2646.6,2645.8,0.02049898]
[1646491235882,0.00267314,2646.1,2645.8,0.02049898]